[Event "Live Chess"]
[Site "Chess.com"]
[Date "2024.06.01"]
[Round "-"]
[White "grillage"]
[Black "Bob2pen"]
[Result "0-1"]
[WhiteElo "1884"]
[BlackElo "1887"]
[TimeControl "300"]
[EndTime "11:36:26 PDT"]
[Termination "Bob2pen won on time"]

1. d4 {[%clk 0:04:57.7]} 1... Nf6 {[%clk 0:04:58.6]} 2. Nf3 {[%clk 0:04:55.5]}
2... c5 {[%clk 0:04:57.4]} 3. d5 {[%clk 0:04:51.5]} 3... e6 {[%clk 0:04:56.2]}
4. Bg5 {[%clk 0:04:45.9]} 4... Qb6 {[%clk 0:04:53.1]} 5. Bxf6 {[%clk 0:04:31.6]}
5... gxf6 {[%clk 0:04:51.3]} 6. dxe6 {[%clk 0:04:23]} 6... dxe6 {[%clk
0:04:47.1]} 7. Nbd2 {[%clk 0:04:19.1]} 7... Bg7 {[%clk 0:04:44.4]} 8. Nc4 {[%clk
0:04:10.8]} 8... Qb4+ {[%clk 0:04:35.9]} 9. Ncd2 {[%clk 0:04:09.5]} 9... O-O
{[%clk 0:04:33.8]} 10. e3 {[%clk 0:04:08.7]} 10... Rd8 {[%clk 0:04:31.9]} 11.
Rb1 {[%clk 0:03:58.1]} 11... Nc6 {[%clk 0:04:30.1]} 12. c3 {[%clk 0:03:57.2]}
12... Qa5 {[%clk 0:04:23.6]} 13. Bc4 {[%clk 0:03:51.3]} 13... b5 {[%clk
0:04:20.3]} 14. Bb3 {[%clk 0:03:49.5]} 14... c4 {[%clk 0:04:18.7]} 15. Bc2
{[%clk 0:03:48.1]} 15... Bb7 {[%clk 0:04:16]} 16. O-O {[%clk 0:03:46.3]} 16...
Qc7 {[%clk 0:04:10.4]} 17. Nd4 {[%clk 0:03:42.1]} 17... a6 {[%clk 0:04:03.3]}
18. Qh5 {[%clk 0:03:39.6]} 18... f5 {[%clk 0:03:59.3]} 19. N2f3 {[%clk
0:03:37.8]} 19... Ne5 {[%clk 0:03:46.5]} 20. Ng5 {[%clk 0:03:29.9]} 20... h6
{[%clk 0:03:40.1]} 21. Nh3 {[%clk 0:03:21.4]} 21... Ng4 {[%clk 0:03:31.3]} 22.
Nf4 {[%clk 0:02:14.8]} 22... Nf6 {[%clk 0:03:24.4]} 23. Qh4 {[%clk 0:02:05]}
23... Be4 {[%clk 0:03:18.8]} 24. Bxe4 {[%clk 0:01:57.9]} 24... Nxe4 {[%clk
0:03:16.3]} 25. Rbd1 {[%clk 0:01:45.8]} 25... e5 {[%clk 0:03:05.3]} 26. Nxf5
{[%clk 0:01:44]} 26... Rxd1 {[%clk 0:03:00.8]} 27. Rxd1 {[%clk 0:01:42.2]} 27...
exf4 {[%clk 0:02:59.5]} 28. Nxg7 {[%clk 0:01:28.2]} 28... Kxg7 {[%clk
0:02:55.1]} 29. Qg4+ {[%clk 0:01:23.5]} 29... Kh7 {[%clk 0:02:39.8]} 30. Rd7
{[%clk 0:01:20.8]} 30... Qe5 {[%clk 0:02:17]} 31. Rxf7+ {[%clk 0:01:17]} 31...
Kh8 {[%clk 0:02:15.9]} 32. exf4 {[%clk 0:01:00.7]} 32... Rg8 {[%clk 0:02:07.4]}
33. Qd7 {[%clk 0:00:46.4]} 33... Nf6 {[%clk 0:01:38.4]} 34. fxe5 {[%clk
0:00:35.4]} 34... Nxd7 {[%clk 0:01:35.7]} 35. Rxd7 {[%clk 0:00:34.1]} 35... Rg6
{[%clk 0:01:34.7]} 36. f4 {[%clk 0:00:31.1]} 36... h5 {[%clk 0:01:32.3]} 37. Kf2
{[%clk 0:00:29.3]} 37... h4 {[%clk 0:01:31]} 38. g3 {[%clk 0:00:28.1]} 38...
hxg3+ {[%clk 0:01:29.3]} 39. hxg3 {[%clk 0:00:27.2]} 39... Kg8 {[%clk
0:01:28.8]} 40. Kf3 {[%clk 0:00:26.1]} 40... Kf8 {[%clk 0:01:28.1]} 41. f5
{[%clk 0:00:24.8]} 41... Rh6 {[%clk 0:01:25.1]} 42. g4 {[%clk 0:00:21.5]} 42...
Ke8 {[%clk 0:01:23.5]} 43. e6 {[%clk 0:00:21]} 43... Rh1 {[%clk 0:01:20.3]} 44.
g5 {[%clk 0:00:17.9]} 44... Rf1+ {[%clk 0:01:18.3]} 45. Ke4 {[%clk 0:00:17]}
45... Re1+ {[%clk 0:01:16.6]} 46. Kf4 {[%clk 0:00:16.2]} 46... Re2 {[%clk
0:01:14.1]} 47. f6 {[%clk 0:00:14.2]} 47... Rf2+ {[%clk 0:01:11.4]} 48. Ke5
{[%clk 0:00:12.4]} 48... Re2+ {[%clk 0:01:10.3]} 49. Kf5 {[%clk 0:00:11.7]}
49... Rf2+ {[%clk 0:01:09.2]} 50. Kg6 {[%clk 0:00:10.8]} 50... Re2 {[%clk
0:01:07.4]} 51. Ra7 {[%clk 0:00:09.3]} 51... Rxe6 {[%clk 0:01:05.7]} 52. Re7+
{[%clk 0:00:07.7]} 52... Rxe7 {[%clk 0:01:04.4]} 53. fxe7 {[%clk 0:00:07]} 53...
Kxe7 {[%clk 0:01:04.1]} 54. Kh7 {[%clk 0:00:06.2]} 54... a5 {[%clk 0:01:03.2]}
55. g6 {[%clk 0:00:05.8]} 55... b4 {[%clk 0:01:03]} 56. g7 {[%clk 0:00:04.5]}
56... b3 {[%clk 0:01:02.1]} 57. axb3 {[%clk 0:00:03]} 57... cxb3 {[%clk
0:01:01.2]} 58. g8=Q {[%clk 0:00:01.6]} 58... a4 {[%clk 0:01:00.9]} 0-1

[Event "Live Chess"]
[Site "Chess.com"]
[Date "2024.06.01"]
[Round "-"]
[White "Sweet-O"]
[Black "Andysav3"]
[Result "0-1"]
[WhiteElo "1540"]
[BlackElo "1867"]
[TimeControl "300"]
[EndTime "11:36:26 PDT"]
[Termination "Andysav3 won by resignation"]

1. d4 {[%clk 0:04:55.3]} 1... Nf6 {[%clk 0:04:58.1]} 2. Nc3 {[%clk 0:04:55.2]}
2... c5 {[%clk 0:04:54.3]} 3. Bf4 {[%clk 0:04:53.5]} 3... cxd4 {[%clk
0:04:48.4]} 4. Qxd4 {[%clk 0:04:53.4]} 4... Nc6 {[%clk 0:04:44.6]} 5. Qa4 {[%clk
0:04:47.8]} 5... g6 {[%clk 0:04:27.4]} 6. Nb5 {[%clk 0:04:44.5]} 6... d6 {[%clk
0:04:26.2]} 7. O-O-O {[%clk 0:04:42.3]} 7... Bg7 {[%clk 0:04:16.5]} 8. e4 {[%clk
0:04:40.3]} 8... O-O {[%clk 0:04:02.3]} 9. e5 {[%clk 0:04:38.2]} 9... Nh5 {[%clk
0:04:00.7]} 10. Bg5 {[%clk 0:04:32.3]} 10... Bxe5 {[%clk 0:03:41.7]} 11. f4
{[%clk 0:04:28.6]} 11... Bf6 {[%clk 0:03:34.2]} 12. Bxf6 {[%clk 0:04:25.2]}
12... Nxf6 {[%clk 0:03:32.4]} 13. h4 {[%clk 0:04:23.8]} 13... a6 {[%clk
0:03:22.6]} 14. Be2 {[%clk 0:04:12.8]} 14... h5 {[%clk 0:03:09.1]} 15. Nf3
{[%clk 0:04:06.9]} 15... Bg4 {[%clk 0:03:05.2]} 16. Nfd4 {[%clk 0:03:52.7]}
16... axb5 {[%clk 0:03:01.3]} 17. Qxb5 {[%clk 0:03:46.4]} 17... Nxd4 {[%clk
0:02:39.9]} 18. Rxd4 {[%clk 0:03:46.3]} 18... Qa5 {[%clk 0:02:34.1]} 19. Qxa5
{[%clk 0:03:30]} 19... Rxa5 {[%clk 0:02:32.2]} 20. Bc4 {[%clk 0:03:29.6]} 20...
b5 {[%clk 0:02:26.3]} 21. Bb3 {[%clk 0:03:27]} 21... Rc8 {[%clk 0:02:14.4]} 22.
Re1 {[%clk 0:03:23]} 22... Kf8 {[%clk 0:02:11.1]} 23. Rb4 {[%clk 0:02:57.9]}
23... Bf5 {[%clk 0:02:08.9]} 24. a3 {[%clk 0:02:53.3]} 24... Ne4 {[%clk
0:02:01.9]} 25. Rbxe4 {[%clk 0:02:49]} 25... Bxe4 {[%clk 0:01:57.2]} 26. Rxe4
{[%clk 0:02:48.9]} 26... Rb8 {[%clk 0:01:48.9]} 27. Bd5 {[%clk 0:02:43.3]} 27...
e6 {[%clk 0:01:46.6]} 28. Bb3 {[%clk 0:02:41.3]} 28... Ke7 {[%clk 0:01:45.6]}
29. Re1 {[%clk 0:02:37.4]} 29... Ra7 {[%clk 0:01:42.7]} 30. Rg1 {[%clk
0:02:36.2]} 30... Rc7 {[%clk 0:01:36.9]} 31. g4 {[%clk 0:02:33.9]} 31... hxg4
{[%clk 0:01:35.5]} 32. Rxg4 {[%clk 0:02:33.8]} 32... Rc5 {[%clk 0:01:34.1]} 33.
Rg1 {[%clk 0:02:27.8]} 33... Rh8 {[%clk 0:01:31.6]} 34. Rh1 {[%clk 0:02:26.4]}
34... Rch5 {[%clk 0:01:30.2]} 35. a4 {[%clk 0:02:22.3]} 35... bxa4 {[%clk
0:01:28.6]} 36. Bxa4 {[%clk 0:02:22.2]} 36... Rxh4 {[%clk 0:01:28.1]} 37. Rd1
{[%clk 0:02:19.7]} 37... Rh1 {[%clk 0:01:25.8]} 38. b4 {[%clk 0:02:16.4]} 38...
Rxd1+ {[%clk 0:01:24.1]} 39. Kxd1 {[%clk 0:02:16.3]} 39... Rh4 {[%clk 0:01:23]}
40. c3 {[%clk 0:02:08.9]} 40... Rxf4 {[%clk 0:01:21.9]} 41. b5 {[%clk
0:02:07.9]} 41... Rxa4 {[%clk 0:01:19.2]} 42. b6 {[%clk 0:02:07.5]} 42... Ra8
{[%clk 0:01:18]} 43. Kc2 {[%clk 0:02:04.2]} 43... Rb8 {[%clk 0:01:17.1]} 44. Kd3
{[%clk 0:02:04.1]} 44... Rxb6 {[%clk 0:01:16.2]} 0-1

[Event "Live Chess"]
[Site "Chess.com"]
[Date "2024.06.01"]
[Round "-"]
[White "booktrunk"]
[Black "GoldsmanB"]
[Result "1/2-1/2"]
[WhiteElo "1368"]
[BlackElo "1057"]
[TimeControl "300"]
[EndTime "11:36:34 PDT"]
[Termination "Game drawn by repetition"]

1. d4 {[%clk 0:04:52.7]} 1... Nf6 {[%clk 0:04:58.1]} 2. Nc3 {[%clk 0:04:52.6]}
2... e6 {[%clk 0:04:56.9]} 3. Bf4 {[%clk 0:04:52.5]} 3... d5 {[%clk 0:04:50.6]}
4. Nb5 {[%clk 0:04:48.5]} 4... Na6 {[%clk 0:04:48]} 5. e3 {[%clk 0:04:46.1]}
5... c6 {[%clk 0:04:46.5]} 6. Nc3 {[%clk 0:04:40.1]} 6... Bd6 {[%clk 0:04:39.1]}
7. Bxa6 {[%clk 0:04:35.4]} 7... Bxf4 {[%clk 0:04:35.2]} 8. Bxb7 {[%clk
0:04:33.5]} 8... Bxb7 {[%clk 0:04:33.9]} 9. exf4 {[%clk 0:04:31.5]} 9... Qa5
{[%clk 0:04:27.6]} 10. Ne2 {[%clk 0:04:28.2]} 10... O-O {[%clk 0:04:25.7]} 11.
O-O {[%clk 0:04:26]} 11... Ba6 {[%clk 0:04:20.5]} 12. Re1 {[%clk 0:04:23.8]}
12... Rab8 {[%clk 0:04:17]} 13. Rb1 {[%clk 0:04:16.4]} 13... Rb7 {[%clk
0:04:08.4]} 14. a3 {[%clk 0:04:14.6]} 14... Rfb8 {[%clk 0:04:05.6]} 15. Qc1
{[%clk 0:04:07.5]} 15... Bxe2 {[%clk 0:03:57.8]} 16. Nxe2 {[%clk 0:04:00]} 16...
Ne4 {[%clk 0:03:50]} 17. f3 {[%clk 0:03:56.6]} 17... Nf6 {[%clk 0:03:46.8]} 18.
Nc3 {[%clk 0:03:38.5]} 18... c5 {[%clk 0:03:36.5]} 19. dxc5 {[%clk 0:03:35.1]}
19... Qxc5+ {[%clk 0:03:36.4]} 20. Kh1 {[%clk 0:03:24.8]} 20... d4 {[%clk
0:03:17.3]} 21. Ne4 {[%clk 0:03:20.1]} 21... Nxe4 {[%clk 0:03:15.4]} 22. fxe4
{[%clk 0:03:13.9]} 22... Rb5 {[%clk 0:03:01.7]} 23. h3 {[%clk 0:03:11.9]} 23...
Qb6 {[%clk 0:03:00.3]} 24. b3 {[%clk 0:03:02.5]} 24... a5 {[%clk 0:02:54.4]} 25.
a4 {[%clk 0:02:54.8]} 25... Rc5 {[%clk 0:02:51]} 26. Qb2 {[%clk 0:02:51.2]}
26... Rbc8 {[%clk 0:02:49.5]} 27. Rbc1 {[%clk 0:02:46.4]} 27... Qc6 {[%clk
0:02:43.8]} 28. Qxd4 {[%clk 0:02:26.4]} 28... Rxc2 {[%clk 0:02:38.9]} 29. Rxc2
{[%clk 0:02:24.1]} 29... Qxc2 {[%clk 0:02:38.2]} 30. Qb6 {[%clk 0:02:17.4]}
30... Qc7 {[%clk 0:02:35.1]} 31. Qb5 {[%clk 0:02:04.4]} 31... Qc5 {[%clk
0:02:28.4]} 32. Qxc5 {[%clk 0:01:52.3]} 32... Rxc5 {[%clk 0:02:28.3]} 33. Re3
{[%clk 0:01:50.6]} 33... Rc1+ {[%clk 0:02:24.3]} 34. Kh2 {[%clk 0:01:48.7]}
34... Kf8 {[%clk 0:02:23.2]} 35. Kg3 {[%clk 0:01:47.3]} 35... Rb1 {[%clk
0:02:21.9]} 36. Kg4 {[%clk 0:01:45.4]} 36... Rb2 {[%clk 0:02:21]} 37. g3 {[%clk
0:01:43.1]} 37... Ke7 {[%clk 0:02:20]} 38. h4 {[%clk 0:01:41.6]} 38... g6 {[%clk
0:02:18.9]} 39. h5 {[%clk 0:01:40.2]} 39... gxh5+ {[%clk 0:02:17.5]} 40. Kxh5
{[%clk 0:01:39.1]} 40... Kf6 {[%clk 0:02:16.8]} 41. Kh4 {[%clk 0:01:29.2]} 41...
Rg2 {[%clk 0:02:11.3]} 42. g4 {[%clk 0:01:21.5]} 42... Kg7 {[%clk 0:02:05.7]}
43. Rc3 {[%clk 0:01:16.8]} 43... Rb2 {[%clk 0:02:03.5]} 44. f5 {[%clk
0:01:11.3]} 44... exf5 {[%clk 0:02:01.3]} 45. exf5 {[%clk 0:01:09.8]} 45... Rf2
{[%clk 0:01:59.7]} 46. Kg5 {[%clk 0:01:08]} 46... h6+ {[%clk 0:01:57.7]} 47. Kh4
{[%clk 0:01:02.7]} 47... Rh2+ {[%clk 0:01:55.1]} 48. Kg3 {[%clk 0:01:01.2]}
48... Re2 {[%clk 0:01:51.7]} 49. Rc5 {[%clk 0:00:58.1]} 49... Re3+ {[%clk
0:01:50.7]} 50. Kf4 {[%clk 0:00:55.4]} 50... Rxb3 {[%clk 0:01:49.7]} 51. Rxa5
{[%clk 0:00:54.3]} 51... Rb4+ {[%clk 0:01:48.4]} 52. Kg3 {[%clk 0:00:51.9]}
52... Re4 {[%clk 0:01:43.8]} 53. Ra6 {[%clk 0:00:47.8]} 53... Re7 {[%clk
0:01:41.2]} 54. a5 {[%clk 0:00:46.2]} 54... Re3+ {[%clk 0:01:37.6]} 55. Kh4
{[%clk 0:00:44.7]} 55... Re4 {[%clk 0:01:36.5]} 56. Ra7 {[%clk 0:00:42.2]} 56...
Re5 {[%clk 0:01:34.3]} 57. a6 {[%clk 0:00:40.6]} 57... Re1 {[%clk 0:01:30.7]}
58. Ra8 {[%clk 0:00:38.3]} 58... Ra1 {[%clk 0:01:29.7]} 59. a7 {[%clk
0:00:36.5]} 59... Ra4 {[%clk 0:01:26.5]} 60. Kh5 {[%clk 0:00:32.2]} 60... f6
{[%clk 0:01:21.7]} 61. Kh4 {[%clk 0:00:21.5]} 61... Ra5 {[%clk 0:01:15.6]} 62.
Kg3 {[%clk 0:00:18.7]} 62... Ra3+ {[%clk 0:01:13.8]} 63. Kf4 {[%clk 0:00:17.4]}
63... Ra4+ {[%clk 0:01:12.8]} 64. Ke3 {[%clk 0:00:16.3]} 64... Ra5 {[%clk
0:01:10]} 65. Kd4 {[%clk 0:00:14.8]} 65... Ra4+ {[%clk 0:01:06.7]} 66. Kc3
{[%clk 0:00:14.7]} 66... Ra3+ {[%clk 0:01:05.6]} 67. Kb4 {[%clk 0:00:13.9]}
67... Ra1 {[%clk 0:01:04.3]} 68. Kb5 {[%clk 0:00:13.1]} 68... Ra2 {[%clk
0:01:03.2]} 69. Kc6 {[%clk 0:00:12]} 69... Ra4 {[%clk 0:01:00.1]} 70. Kb7 {[%clk
0:00:10.7]} 70... Rb4+ {[%clk 0:00:56.4]} 71. Ka6 {[%clk 0:00:09.4]} 71... Ra4+
{[%clk 0:00:55.2]} 72. Kb5 {[%clk 0:00:07.7]} 72... Ra1 {[%clk 0:00:53.3]} 73.
Kb6 {[%clk 0:00:06]} 73... Rb1+ {[%clk 0:00:52.4]} 74. Kc7 {[%clk 0:00:05.4]}
74... Ra1 {[%clk 0:00:51.1]} 75. Kb7 {[%clk 0:00:03.5]} 75... Rb1+ {[%clk
0:00:49.8]} 76. Kc7 {[%clk 0:00:02.7]} 76... Ra1 {[%clk 0:00:48.7]} 77. Kb7
{[%clk 0:00:02.4]} 77... Rb1+ {[%clk 0:00:45.7]} 78. Kc7 {[%clk 0:00:02.3]}
1/2-1/2

[Event "Live Chess"]
[Site "Chess.com"]
[Date "2024.06.01"]
[Round "-"]
[White "ProfPoisson"]
[Black "degringolade64"]
[Result "0-1"]
[WhiteElo "1252"]
[BlackElo "2066"]
[TimeControl "300"]
[EndTime "11:36:37 PDT"]
[Termination "degringolade64 won by checkmate"]

1. e4 {[%clk 0:04:52.1]} 1... e5 {[%clk 0:04:58.8]} 2. Nf3 {[%clk 0:04:49.2]}
2... Nc6 {[%clk 0:04:58.1]} 3. d4 {[%clk 0:04:46.6]} 3... exd4 {[%clk
0:04:56.7]} 4. Bc4 {[%clk 0:04:45.1]} 4... Nf6 {[%clk 0:04:54.9]} 5. e5 {[%clk
0:04:42.6]} 5... d5 {[%clk 0:04:52.9]} 6. Bb5 {[%clk 0:04:40.4]} 6... Nd7 {[%clk
0:04:50.9]} 7. O-O {[%clk 0:04:35.7]} 7... Be7 {[%clk 0:04:48.6]} 8. Bxc6 {[%clk
0:04:24.4]} 8... bxc6 {[%clk 0:04:48.5]} 9. Qxd4 {[%clk 0:04:21.9]} 9... O-O
{[%clk 0:04:28.8]} 10. Qg4 {[%clk 0:03:50]} 10... Nxe5 {[%clk 0:04:25.2]} 11.
Qa4 {[%clk 0:03:40.8]} 11... Nxf3+ {[%clk 0:04:23]} 12. gxf3 {[%clk 0:03:38.3]}
12... Bd6 {[%clk 0:04:19.3]} 13. Kh1 {[%clk 0:03:24.3]} 13... Qf6 {[%clk
0:03:59]} 14. Rg1 {[%clk 0:03:20.2]} 14... Qxf3+ {[%clk 0:03:57.1]} 15. Rg2
{[%clk 0:03:16.8]} 15... Bh3 {[%clk 0:03:56.6]} 16. Nd2 {[%clk 0:02:46]} 16...
Qxg2# {[%clk 0:03:55.3]} 0-1

[Event "Live Chess"]
[Site "Chess.com"]
[Date "2024.06.01"]
[Round "-"]
[White "NottheBishopSacrifice"]
[Black "Mof05"]
[Result "1-0"]
[WhiteElo "2295"]
[BlackElo "1045"]
[TimeControl "300"]
[EndTime "11:36:39 PDT"]
[Termination "NottheBishopSacrifice won on time"]

1. g3 {[%clk 0:04:56.3]} 1... d5 {[%clk 0:04:56.8]} 2. Bg2 {[%clk 0:04:55.6]}
2... c6 {[%clk 0:04:55.5]} 3. Nf3 {[%clk 0:04:55.1]} 3... Nf6 {[%clk 0:04:54.5]}
4. O-O {[%clk 0:04:54.2]} 4... Bg4 {[%clk 0:04:45.4]} 5. d4 {[%clk 0:04:53.4]}
5... e6 {[%clk 0:04:43.9]} 6. c4 {[%clk 0:04:51.9]} 6... Nbd7 {[%clk 0:04:41.1]}
7. b3 {[%clk 0:04:50]} 7... Be7 {[%clk 0:04:35]} 8. Bb2 {[%clk 0:04:49]} 8...
O-O {[%clk 0:04:33]} 9. Nbd2 {[%clk 0:04:48.6]} 9... h6 {[%clk 0:04:25.2]} 10.
Re1 {[%clk 0:04:47.5]} 10... Bd6 {[%clk 0:04:08.5]} 11. e4 {[%clk 0:04:43.5]}
11... dxe4 {[%clk 0:04:05.7]} 12. Nxe4 {[%clk 0:04:43.4]} 12... Nxe4 {[%clk
0:03:57.3]} 13. Rxe4 {[%clk 0:04:43.3]} 13... Bf5 {[%clk 0:03:39.1]} 14. Re1
{[%clk 0:04:39.4]} 14... Nf6 {[%clk 0:03:34.5]} 15. Ne5 {[%clk 0:04:31.8]} 15...
Qc7 {[%clk 0:03:24.4]} 16. a4 {[%clk 0:04:18.6]} 16... Rfd8 {[%clk 0:03:14.2]}
17. Qe2 {[%clk 0:04:17]} 17... Rac8 {[%clk 0:03:04.2]} 18. a5 {[%clk 0:04:13.7]}
18... a6 {[%clk 0:03:00.7]} 19. c5 {[%clk 0:04:10.8]} 19... Be7 {[%clk
0:02:50.6]} 20. Nc4 {[%clk 0:04:09.7]} 20... Nd5 {[%clk 0:02:19.9]} 21. Nb6
{[%clk 0:04:01.1]} 21... Rb8 {[%clk 0:02:12.9]} 22. Rad1 {[%clk 0:03:58.4]}
22... Nxb6 {[%clk 0:01:54.7]} 23. axb6 {[%clk 0:03:55.4]} 23... Qd7 {[%clk
0:01:37.6]} 24. Bc1 {[%clk 0:03:54.8]} 24... Ra8 {[%clk 0:01:17.8]} 25. Bf4
{[%clk 0:03:53.2]} 25... a5 {[%clk 0:01:05.3]} 26. Bc7 {[%clk 0:03:51.4]} 26...
Rdc8 {[%clk 0:00:53.8]} 27. Qc4 {[%clk 0:03:50.8]} 27... Bd8 {[%clk 0:00:36.6]}
28. Bd6 {[%clk 0:03:48.3]} 28... Be7 {[%clk 0:00:34.1]} 29. Bc7 {[%clk 0:03:46]}
29... Bd8 {[%clk 0:00:33.1]} 30. Be5 {[%clk 0:03:45.6]} 30... Be7 {[%clk
0:00:30.6]} 31. Ra1 {[%clk 0:03:42.8]} 31... Rd8 {[%clk 0:00:17.4]} 32. Ra4
{[%clk 0:03:39.2]} 32... Rdc8 {[%clk 0:00:15.3]} 33. Rea1 {[%clk 0:03:37.2]}
33... Bd8 {[%clk 0:00:11.9]} 34. Rxa5 {[%clk 0:03:35.7]} 34... Rxa5 {[%clk
0:00:10.8]} 35. Rxa5 {[%clk 0:03:35.4]} 35... Be7 {[%clk 0:00:07.3]} 36. Ra7
{[%clk 0:03:34.1]} 36... Rb8 {[%clk 0:00:01.9]} 37. Bxb8 {[%clk 0:03:32]} 1-0

[Event "Live Chess"]
[Site "Chess.com"]
[Date "2024.06.01"]
[Round "-"]
[White "TJ-W"]
[Black "Sokolik_UA"]
[Result "1-0"]
[WhiteElo "1567"]
[BlackElo "803"]
[TimeControl "300"]
[EndTime "11:36:48 PDT"]
[Termination "TJ-W won by checkmate"]

1. e4 {[%clk 0:04:57.3]} 1... d5 {[%clk 0:04:59.9]} 2. exd5 {[%clk 0:04:56]}
2... Qxd5 {[%clk 0:04:58.1]} 3. Nc3 {[%clk 0:04:55.6]} 3... Qd8 {[%clk 0:04:57]}
4. d4 {[%clk 0:04:53.9]} 4... Nf6 {[%clk 0:04:56.6]} 5. Nf3 {[%clk 0:04:53.1]}
5... e6 {[%clk 0:04:56.2]} 6. Bd2 {[%clk 0:04:52.5]} 6... Bd6 {[%clk 0:04:55.8]}
7. Bc4 {[%clk 0:04:50.6]} 7... O-O {[%clk 0:04:54]} 8. O-O {[%clk 0:04:45.1]}
8... c6 {[%clk 0:04:52.1]} 9. Bg5 {[%clk 0:04:41.5]} 9... Be7 {[%clk 0:04:48.6]}
10. Qd2 {[%clk 0:04:39.4]} 10... Nbd7 {[%clk 0:04:40.1]} 11. Rfe1 {[%clk
0:04:33.4]} 11... b5 {[%clk 0:04:38.2]} 12. Bd3 {[%clk 0:04:17.2]} 12... Ng4
{[%clk 0:04:34.2]} 13. Bxe7 {[%clk 0:04:12.6]} 13... Qxe7 {[%clk 0:04:33.2]} 14.
Qf4 {[%clk 0:04:10.3]} 14... Ndf6 {[%clk 0:04:25.3]} 15. h3 {[%clk 0:04:07.4]}
15... Nh6 {[%clk 0:04:01]} 16. Ng5 {[%clk 0:04:03]} 16... g6 {[%clk 0:03:48.6]}
17. Nxe6 {[%clk 0:03:46.2]} 17... fxe6 {[%clk 0:03:46]} 18. Qxh6 {[%clk
0:03:43.6]} 18... Qg7 {[%clk 0:03:42.9]} 19. Qxg7+ {[%clk 0:03:40.1]} 19... Kxg7
{[%clk 0:03:41.9]} 20. Ne4 {[%clk 0:03:39.1]} 20... Bd7 {[%clk 0:03:38.1]} 21.
Nxf6 {[%clk 0:03:36.4]} 21... Rxf6 {[%clk 0:03:35.5]} 22. c4 {[%clk 0:03:34.5]}
22... Raf8 {[%clk 0:03:32.5]} 23. f3 {[%clk 0:03:31.1]} 23... h6 {[%clk
0:03:26]} 24. cxb5 {[%clk 0:03:28.5]} 24... cxb5 {[%clk 0:03:24.7]} 25. Rac1
{[%clk 0:03:26.2]} 25... b4 {[%clk 0:03:19.9]} 26. Rc7 {[%clk 0:03:23.9]} 26...
R8f7 {[%clk 0:03:17.3]} 27. Bc4 {[%clk 0:03:14.2]} 27... g5 {[%clk 0:03:14.1]}
28. d5 {[%clk 0:03:07.2]} 28... h5 {[%clk 0:03:07.3]} 29. dxe6 {[%clk
0:03:04.7]} 29... Bxe6 {[%clk 0:03:05.3]} 30. Rxf7+ {[%clk 0:02:51.6]} 30...
Bxf7 {[%clk 0:03:03.4]} 31. Re7 {[%clk 0:02:45.7]} 31... Kg6 {[%clk 0:03:00.3]}
32. Bd3+ {[%clk 0:02:41.7]} 32... Kg7 {[%clk 0:02:58.7]} 33. Rxa7 {[%clk
0:02:39.7]} 33... Rd6 {[%clk 0:02:54.6]} 34. Bc4 {[%clk 0:02:33.9]} 34... Kf6
{[%clk 0:02:52.9]} 35. Rxf7+ {[%clk 0:02:31]} 35... Ke5 {[%clk 0:02:51.2]} 36.
Rb7 {[%clk 0:02:27.9]} 36... Rd4 {[%clk 0:02:48.2]} 37. Rxb4 {[%clk 0:02:25.2]}
37... g4 {[%clk 0:02:45]} 38. hxg4 {[%clk 0:02:22.7]} 38... hxg4 {[%clk
0:02:44]} 39. fxg4 {[%clk 0:02:19.6]} 39... Rxg4 {[%clk 0:02:43.5]} 40. b3
{[%clk 0:02:18.5]} 40... Rd4 {[%clk 0:02:41.2]} 41. a4 {[%clk 0:02:15.3]} 41...
Rd1+ {[%clk 0:02:40.6]} 42. Kf2 {[%clk 0:02:12.9]} 42... Rd2+ {[%clk 0:02:40]}
43. Kg3 {[%clk 0:02:10.9]} 43... Kd4 {[%clk 0:02:36.7]} 44. a5 {[%clk
0:02:06.2]} 44... Kc3 {[%clk 0:02:36.1]} 45. Rb7 {[%clk 0:01:56.9]} 45... Ra2
{[%clk 0:02:33.8]} 46. a6 {[%clk 0:01:55.5]} 46... Kd4 {[%clk 0:02:29.3]} 47. a7
{[%clk 0:01:52.8]} 47... Kc5 {[%clk 0:02:27.9]} 48. b4+ {[%clk 0:01:48.6]} 48...
Kxc4 {[%clk 0:02:26.4]} 49. b5 {[%clk 0:01:45.8]} 49... Kc5 {[%clk 0:02:25.4]}
50. Rc7+ {[%clk 0:01:39]} 50... Kb6 {[%clk 0:02:24]} 51. Re7 {[%clk 0:01:32.8]}
51... Rxa7 {[%clk 0:02:19.9]} 52. Rxa7 {[%clk 0:01:30.5]} 52... Kxa7 {[%clk
0:02:19]} 53. Kf4 {[%clk 0:01:30.2]} 53... Kb6 {[%clk 0:02:17.2]} 54. Kf5 {[%clk
0:01:29.6]} 54... Kxb5 {[%clk 0:02:16.7]} 55. g4 {[%clk 0:01:29.2]} 55... Kc6
{[%clk 0:02:16.3]} 56. g5 {[%clk 0:01:26.9]} 56... Kd7 {[%clk 0:02:15.9]} 57.
Kf6 {[%clk 0:01:25]} 57... Ke8 {[%clk 0:02:15.3]} 58. Kg7 {[%clk 0:01:24.3]}
58... Ke7 {[%clk 0:02:11.4]} 59. g6 {[%clk 0:01:24.2]} 59... Ke6 {[%clk
0:02:10.1]} 60. Kh8 {[%clk 0:01:24.1]} 60... Kf6 {[%clk 0:02:09.2]} 61. g7
{[%clk 0:01:24]} 61... Kf7 {[%clk 0:02:08.1]} 62. g8=Q+ {[%clk 0:01:23.9]} 62...
Kf6 {[%clk 0:02:03.6]} 63. Qe8 {[%clk 0:01:22.7]} 63... Kg5 {[%clk 0:01:58.5]}
64. Qf7 {[%clk 0:01:19.1]} 64... Kh6 {[%clk 0:01:57.2]} 65. Qf4+ {[%clk
0:01:12.4]} 65... Kg6 {[%clk 0:01:56.2]} 66. Kg8 {[%clk 0:01:08.3]} 66... Kh5
{[%clk 0:01:54.7]} 67. Qg3 {[%clk 0:01:02.5]} 67... Kh6 {[%clk 0:01:53.9]} 68.
Kf7 {[%clk 0:01:01.2]} 68... Kh5 {[%clk 0:01:52.4]} 69. Kf6 {[%clk 0:00:58.9]}
69... Kh6 {[%clk 0:01:51.4]} 70. Qh4# {[%clk 0:00:58.1]} 1-0

[Event "Live Chess"]
[Site "Chess.com"]
[Date "2024.06.01"]
[Round "-"]
[White "Cruiseylee78"]
[Black "Isambard_Thomas"]
[Result "0-1"]
[WhiteElo "1702"]
[BlackElo "2164"]
[TimeControl "300"]
[EndTime "11:36:56 PDT"]
[Termination "Isambard_Thomas won by resignation"]

1. d4 {[%clk 0:04:59.2]} 1... Nf6 {[%clk 0:04:58.8]} 2. Bf4 {[%clk 0:04:58.4]}
2... d5 {[%clk 0:04:57.8]} 3. e3 {[%clk 0:04:57.8]} 3... c6 {[%clk 0:04:57.1]}
4. Bd3 {[%clk 0:04:56.9]} 4... Bg4 {[%clk 0:04:55.3]} 5. Nf3 {[%clk 0:04:56]}
5... e6 {[%clk 0:04:53.8]} 6. Nbd2 {[%clk 0:04:55.1]} 6... Nbd7 {[%clk
0:04:52.8]} 7. c3 {[%clk 0:04:54.6]} 7... Nb6 {[%clk 0:04:49]} 8. Qc2 {[%clk
0:04:53.8]} 8... Bd6 {[%clk 0:04:47.4]} 9. Bg3 {[%clk 0:04:52.7]} 9... Bh5
{[%clk 0:04:45.9]} 10. O-O-O {[%clk 0:04:43.9]} 10... a5 {[%clk 0:04:43.5]} 11.
Kb1 {[%clk 0:04:42.9]} 11... Bg6 {[%clk 0:04:41.6]} 12. Bxg6 {[%clk 0:04:41.1]}
12... hxg6 {[%clk 0:04:41.5]} 13. Ng5 {[%clk 0:04:39.4]} 13... Ke7 {[%clk
0:04:35.5]} 14. Ndf3 {[%clk 0:04:36.8]} 14... a4 {[%clk 0:04:33.2]} 15. Ne5
{[%clk 0:04:28.3]} 15... Bxe5 {[%clk 0:03:43.5]} 16. Bxe5 {[%clk 0:04:28.2]}
16... Nc4 {[%clk 0:03:36.2]} 17. Bxf6+ {[%clk 0:03:59.5]} 17... gxf6 {[%clk
0:03:30]} 18. Nf3 {[%clk 0:03:58]} 18... Qb6 {[%clk 0:03:26.7]} 19. h4 {[%clk
0:03:53.2]} 19... Na3+ {[%clk 0:03:20.3]} 0-1